[Event "Titled Tuesday Blitz April 19 Early 2022"]
[White "Aradhya, Garg"]
[Black "Oparin, Grigoriy"]
[WhiteFideId "25006746"]
[BlackFideId "24125890"]
[WhiteElo "2169"]
[BlackElo "2665"]
[Result "0-1"]
[Round "03"]
[TimeControl "180+1"]
[Date "2022.04.19"]
[WhiteClock "0:00:08"]
[BlackClock "0:01:45"]

1. d4 {[%clk 0:02:57]}  Nf6 {[%clk 0:02:59]} 2. Nf3 {[%clk 0:02:57]}  e6 {[%clk 0:02:59]} 3. Bg5 {[%clk 0:02:56]}  d5 {[%clk 0:02:57]} 4. e3 {[%clk 0:02:55]}  h6 {[%clk 0:02:55]} 5. Bh4 {[%clk 0:02:53]}  Nbd7 {[%clk 0:02:55]} 6. Bd3 {[%clk 0:02:46]}  Be7 {[%clk 0:02:56]} 7. O-O {[%clk 0:02:46]}  c5 {[%clk 0:02:55]} 8. c3 {[%clk 0:02:45]}  b6 {[%clk 0:02:54]} 9. Nbd2 {[%clk 0:02:45]}  Bb7 {[%clk 0:02:54]} 10. a4 {[%clk 0:02:44]}  O-O {[%clk 0:02:54]} 11. Qb1 {[%clk 0:02:42]}  Nh5 {[%clk 0:02:50]} 12. Bxe7 {[%clk 0:02:41]}  Qxe7 {[%clk 0:02:50]} 13. Re1 {[%clk 0:02:40]}  Nhf6 {[%clk 0:02:50]} 14. a5 {[%clk 0:02:38]}  e5 {[%clk 0:02:47]} 15. dxe5 {[%clk 0:02:21]}  Nxe5 {[%clk 0:02:47]} 16. Nxe5 {[%clk 0:02:22]}  Qxe5 {[%clk 0:02:48]} 17. a6 {[%clk 0:02:21]}  Bc6 {[%clk 0:02:48]} 18. e4 {[%clk 0:02:22]}  Rae8 {[%clk 0:02:28]} 19. Nf3 {[%clk 0:02:18]}  Qc7 {[%clk 0:02:21]} 20. e5 {[%clk 0:01:32]}  Nd7 {[%clk 0:02:20]} 21. e6 {[%clk 0:00:44]}  Rxe6 {[%clk 0:02:20]} 22. Rxe6 {[%clk 0:00:43]}  fxe6 {[%clk 0:02:21]} 23. Bh7+ {[%clk 0:00:41]}  Kh8 {[%clk 0:02:21]} 24. Nh4 {[%clk 0:00:42]}  Ne5 {[%clk 0:02:22]} 25. Ng6+ {[%clk 0:00:42]}  Nxg6 {[%clk 0:02:22]} 26. Bxg6 {[%clk 0:00:42]}  e5 {[%clk 0:02:17]} 27. Qd3 {[%clk 0:00:39]}  e4 {[%clk 0:02:15]} 28. Qg3 {[%clk 0:00:38]}  Qxg3 {[%clk 0:02:13]} 29. hxg3 {[%clk 0:00:37]}  Rf6 {[%clk 0:02:13]} 30. Bh5 {[%clk 0:00:35]}  g6 {[%clk 0:02:10]} 31. Be2 {[%clk 0:00:31]}  Kg7 {[%clk 0:02:10]} 32. Rd1 {[%clk 0:00:27]}  Rd6 {[%clk 0:02:09]} 33. f3 {[%clk 0:00:26]}  e3 {[%clk 0:02:03]} 34. Bc4 {[%clk 0:00:20]}  Kf6 {[%clk 0:01:57]} 35. Kf1 {[%clk 0:00:18]}  Ke7 {[%clk 0:01:57]} 36. Bb3 {[%clk 0:00:17]}  Bb5+ {[%clk 0:01:56]} 37. Ke1 {[%clk 0:00:17]}  d4 {[%clk 0:01:55]} 38. cxd4 {[%clk 0:00:16]}  cxd4 {[%clk 0:01:56]} 39. Rc1 {[%clk 0:00:15]}  d3 {[%clk 0:01:55]} 40. Rc7+ {[%clk 0:00:15]}  Rd7 {[%clk 0:01:53]} 41. Rxd7+ {[%clk 0:00:14]}  Kxd7 {[%clk 0:01:54]} 42. Bf7 {[%clk 0:00:13]}  d2+ {[%clk 0:01:54]} 43. Kd1 {[%clk 0:00:13]}  g5 {[%clk 0:01:53]} 44. b3 {[%clk 0:00:11]}  Bxa6 {[%clk 0:01:52]} 45. Bg6 {[%clk 0:00:09]}  Bf1 {[%clk 0:01:51]} 46. Be4 {[%clk 0:00:09]}  Bxg2 {[%clk 0:01:45]} 47. Ke2 {[%clk 0:00:10]}  Bf1+ {[%clk 0:01:45]} 48. Kd1 {[%clk 0:00:10]}  a5 {[%clk 0:01:45]} 49. f4 {[%clk 0:00:10]}  gxf4 {[%clk 0:01:45]} 50. gxf4 {[%clk 0:00:11]}  h5 {[%clk 0:01:45]} 51. Bf3 {[%clk 0:00:10]}  h4 {[%clk 0:01:45]} 52. Bg4+ {[%clk 0:00:10]}  Ke7 {[%clk 0:01:45]} 53. Be2 {[%clk 0:00:10]}  Bxe2+ {[%clk 0:01:45]} 54. Kxe2 {[%clk 0:00:10]}  b5 {[%clk 0:01:45]} 55. Kxe3 {[%clk 0:00:07]}  d1=Q {[%clk 0:01:45]} 56. Ke4 {[%clk 0:00:07]}  Qxb3 {[%clk 0:01:46]} 57. Kf5 {[%clk 0:00:08]}  Qe6+ {[%clk 0:01:46]} 58. Kg5 {[%clk 0:00:08]}  h3 {[%clk 0:01:46]} 59. Kh4 {[%clk 0:00:08]}  h2 {[%clk 0:01:46]} 60. f5 {[%clk 0:00:09]}  Qg8 {[%clk 0:01:45]} 61. Kh3 {[%clk 0:00:08]}  h1=Q# {[%clk 0:01:45]} 0-1


[Site "https://www.chess.com"]

[Event "Titled Tuesday Blitz April 19 Early 2022"]
[White "Araujo Filho, Luiz Antonio Coel"]
[Black "Petre, Nad-Titus"]
[WhiteFideId "2130661"]
[BlackFideId "1204165"]
[WhiteElo "2296"]
[BlackElo "2354"]
[Result "1-0"]
[Round "03"]
[TimeControl "180+1"]
[Date "2022.04.19"]
[WhiteClock "0:00:07"]
[BlackClock "0:00:02"]

1. d4 {[%clk 0:03:00]}  Nf6 {[%clk 0:02:58]} 2. Nf3 {[%clk 0:02:52]}  b6 {[%clk 0:02:57]} 3. e3 {[%clk 0:02:47]}  Bb7 {[%clk 0:02:56]} 4. Bd3 {[%clk 0:02:48]}  d6 {[%clk 0:02:55]} 5. Nbd2 {[%clk 0:02:48]}  Nbd7 {[%clk 0:02:56]} 6. b3 {[%clk 0:02:47]}  g6 {[%clk 0:02:56]} 7. Bb2 {[%clk 0:02:47]}  Bg7 {[%clk 0:02:57]} 8. O-O {[%clk 0:02:48]}  a5 {[%clk 0:02:58]} 9. c4 {[%clk 0:02:47]}  a4 {[%clk 0:02:57]} 10. e4 {[%clk 0:02:44]}  a3 {[%clk 0:02:55]} 11. Bc3 {[%clk 0:02:45]}  O-O {[%clk 0:02:54]} 12. Qe2 {[%clk 0:02:45]}  e5 {[%clk 0:02:53]} 13. dxe5 {[%clk 0:02:43]}  Ng4 {[%clk 0:02:53]} 14. Rac1 {[%clk 0:02:29]}  Ndxe5 {[%clk 0:02:46]} 15. Bb1 {[%clk 0:02:27]}  Re8 {[%clk 0:02:38]} 16. h3 {[%clk 0:02:24]}  Nxf3+ {[%clk 0:02:30]} 17. Nxf3 {[%clk 0:02:23]}  Nf6 {[%clk 0:02:28]} 18. Nd2 {[%clk 0:02:14]}  Nh5 {[%clk 0:02:11]} 19. Bxg7 {[%clk 0:02:09]}  Kxg7 {[%clk 0:02:11]} 20. Qg4 {[%clk 0:01:59]}  Qf6 {[%clk 0:01:59]} 21. Rfe1 {[%clk 0:01:42]}  Ra5 {[%clk 0:01:52]} 22. Nf3 {[%clk 0:01:38]}  Nf4 {[%clk 0:01:40]} 23. Rcd1 {[%clk 0:01:33]}  Bc8 {[%clk 0:01:33]} 24. Qg3 {[%clk 0:01:28]}  Rh5 {[%clk 0:01:24]} 25. Re3 {[%clk 0:00:48]}  Nxh3+ {[%clk 0:00:42]} 26. gxh3 {[%clk 0:00:41]}  Rxh3 {[%clk 0:00:42]} 27. Qg2 {[%clk 0:00:40]}  h5 {[%clk 0:00:33]} 28. Ne1 {[%clk 0:00:29]}  Rxe3 {[%clk 0:00:15]} 29. fxe3 {[%clk 0:00:29]}  Bg4 {[%clk 0:00:14]} 30. Rd4 {[%clk 0:00:23]}  Re5 {[%clk 0:00:12]} 31. Qf2 {[%clk 0:00:10]}  Qe7 {[%clk 0:00:08]} 32. Ng2 {[%clk 0:00:09]}  Rg5 {[%clk 0:00:07]} 33. Kh2 {[%clk 0:00:07]}  Qe5+ {[%clk 0:00:02]} 34. Nf4 {[%clk 0:00:07]} 1-0


[Site "https://www.chess.com"]

[Event "Titled Tuesday Blitz April 19 Early 2022"]
[White "Ardila, Oscar Humberto"]
[Black "Martic, Ivan"]
[WhiteFideId "4404742"]
[BlackFideId "929301"]
[WhiteElo "1983"]
[BlackElo "2317"]
[Result "0-1"]
[Round "03"]
[TimeControl "180+1"]
[Date "2022.04.19"]
[WhiteClock "0:01:41"]
[BlackClock "0:01:11"]

1. d4 {[%clk 0:02:59]}  Nf6 {[%clk 0:02:59]} 2. c4 {[%clk 0:03:00]}  g6 {[%clk 0:02:59]} 3. Nc3 {[%clk 0:02:59]}  Bg7 {[%clk 0:02:59]} 4. e4 {[%clk 0:03:00]}  d6 {[%clk 0:03:00]} 5. Nf3 {[%clk 0:03:00]}  O-O {[%clk 0:03:00]} 6. Be2 {[%clk 0:03:00]}  e5 {[%clk 0:03:01]} 7. d5 {[%clk 0:03:00]}  a5 {[%clk 0:03:01]} 8. O-O {[%clk 0:03:00]}  Na6 {[%clk 0:03:00]} 9. Qc2 {[%clk 0:03:00]}  Bd7 {[%clk 0:02:51]} 10. Bg5 {[%clk 0:02:59]}  h6 {[%clk 0:02:50]} 11. Bxf6 {[%clk 0:03:00]}  Bxf6 {[%clk 0:02:47]} 12. b3 {[%clk 0:03:00]}  Bg7 {[%clk 0:02:43]} 13. a3 {[%clk 0:03:00]}  f5 {[%clk 0:02:43]} 14. Nd2 {[%clk 0:02:59]}  Kh8 {[%clk 0:02:30]} 15. Qd1 {[%clk 0:02:58]}  c6 {[%clk 0:02:18]} 16. dxc6 {[%clk 0:02:53]}  bxc6 {[%clk 0:02:19]} 17. Bf3 {[%clk 0:02:48]}  Nc5 {[%clk 0:02:14]} 18. b4 {[%clk 0:02:44]}  Ne6 {[%clk 0:02:09]} 19. Ne2 {[%clk 0:02:39]}  axb4 {[%clk 0:02:04]} 20. axb4 {[%clk 0:02:38]}  Rxa1 {[%clk 0:02:05]} 21. Qxa1 {[%clk 0:02:38]}  Ng5 {[%clk 0:02:00]} 22. exf5 {[%clk 0:02:32]}  e4 {[%clk 0:01:55]} 23. f6 {[%clk 0:02:25]}  Bxf6 {[%clk 0:01:54]} 24. Qa7 {[%clk 0:02:24]}  exf3 {[%clk 0:01:53]} 25. Nxf3 {[%clk 0:02:24]}  Nxf3+ {[%clk 0:01:52]} 26. gxf3 {[%clk 0:02:25]}  Bh3 {[%clk 0:01:44]} 27. Rd1 {[%clk 0:02:24]}  Be5 {[%clk 0:01:39]} 28. c5 {[%clk 0:02:20]}  Qf6 {[%clk 0:01:39]} 29. Qa3 {[%clk 0:02:03]}  dxc5 {[%clk 0:01:33]} 30. bxc5 {[%clk 0:02:01]}  Qxf3 {[%clk 0:01:30]} 31. Qxf3 {[%clk 0:02:01]}  Rxf3 {[%clk 0:01:31]} 32. Rd8+ {[%clk 0:01:59]}  Kg7 {[%clk 0:01:30]} 33. Re8 {[%clk 0:01:57]}  Bf6 {[%clk 0:01:20]} 34. Ng3 {[%clk 0:01:53]}  Rc3 {[%clk 0:01:18]} 35. Re1 {[%clk 0:01:51]}  Rxc5 {[%clk 0:01:15]} 36. Rd1 {[%clk 0:01:48]}  Ra5 {[%clk 0:01:13]} 37. f3 {[%clk 0:01:47]}  Ra1 {[%clk 0:01:10]} 38. Rxa1 {[%clk 0:01:43]}  Bd4+ {[%clk 0:01:10]} 39. Kh1 {[%clk 0:01:41]}  Bxa1 {[%clk 0:01:11]} 0-1


[Site "https://www.chess.com"]

[Event "Titled Tuesday Blitz April 19 Early 2022"]
[White "Aroesti, Roee"]
[Black "Devaev, Alexander"]
[WhiteFideId "2817144"]
[BlackFideId "4169395"]
[WhiteElo "2068"]
[BlackElo "2185"]
[Result "1-0"]
[Round "03"]
[TimeControl "180+1"]
[Date "2022.04.19"]
[WhiteClock "0:00:13"]
[BlackClock "0:00:08"]

1. e4 {[%clk 0:03:00]}  c6 {[%clk 0:02:40]} 2. Nf3 {[%clk 0:02:58]}  d5 {[%clk 0:02:36]} 3. Nc3 {[%clk 0:02:58]}  dxe4 {[%clk 0:02:35]} 4. Nxe4 {[%clk 0:02:59]}  Nf6 {[%clk 0:02:35]} 5. Qe2 {[%clk 0:03:00]}  Bf5 {[%clk 0:02:34]} 6. Nxf6+ {[%clk 0:02:58]}  gxf6 {[%clk 0:02:34]} 7. d3 {[%clk 0:02:57]}  Nd7 {[%clk 0:02:34]} 8. g3 {[%clk 0:02:56]}  e6 {[%clk 0:02:32]} 9. Bg2 {[%clk 0:02:54]}  Bg4 {[%clk 0:02:29]} 10. h3 {[%clk 0:02:50]}  Bh5 {[%clk 0:02:30]} 11. Bd2 {[%clk 0:02:45]}  Qb6 {[%clk 0:02:19]} 12. O-O-O {[%clk 0:02:41]}  Be7 {[%clk 0:02:17]} 13. Bc3 {[%clk 0:02:35]}  O-O-O {[%clk 0:02:07]} 14. Kb1 {[%clk 0:02:30]}  Kb8 {[%clk 0:02:07]} 15. g4 {[%clk 0:02:23]}  Bg6 {[%clk 0:02:06]} 16. Nh4 {[%clk 0:02:23]}  Ka8 {[%clk 0:02:05]} 17. f4 {[%clk 0:02:20]}  f5 {[%clk 0:01:05]} 18. Nxg6 {[%clk 0:01:54]}  hxg6 {[%clk 0:01:03]} 19. Bxh8 {[%clk 0:01:53]}  Rxh8 {[%clk 0:01:04]} 20. c3 {[%clk 0:01:52]}  Bd6 {[%clk 0:00:57]} 21. Qf3 {[%clk 0:01:43]}  Qc7 {[%clk 0:00:57]} 22. Rhf1 {[%clk 0:01:37]}  Nf6 {[%clk 0:00:58]} 23. c4 {[%clk 0:01:33]}  a6 {[%clk 0:00:37]} 24. Rd2 {[%clk 0:01:30]}  fxg4 {[%clk 0:00:31]} 25. hxg4 {[%clk 0:01:30]}  Rh4 {[%clk 0:00:31]} 26. f5 {[%clk 0:01:25]}  exf5 {[%clk 0:00:25]} 27. gxf5 {[%clk 0:01:21]}  g5 {[%clk 0:00:24]} 28. d4 {[%clk 0:01:15]}  Qa5 {[%clk 0:00:21]} 29. Rd3 {[%clk 0:01:03]}  Rf4 {[%clk 0:00:21]} 30. Qe2 {[%clk 0:01:00]}  Rxf5 {[%clk 0:00:20]} 31. c5 {[%clk 0:00:55]}  Bf4 {[%clk 0:00:19]} 32. Be4 {[%clk 0:00:44]}  Nxe4 {[%clk 0:00:19]} 33. Qxe4 {[%clk 0:00:45]}  Rf6 {[%clk 0:00:18]} 34. Qe7 {[%clk 0:00:28]}  Re6 {[%clk 0:00:11]} 35. Qxf7 {[%clk 0:00:18]}  Re1+ {[%clk 0:00:11]} 36. Rd1 {[%clk 0:00:18]}  Re2 {[%clk 0:00:11]} 37. Qg8+ {[%clk 0:00:14]}  Ka7 {[%clk 0:00:11]} 38. Qc4 {[%clk 0:00:15]}  Qc7 {[%clk 0:00:08]} 39. Qxe2 {[%clk 0:00:14]}  a5 {[%clk 0:00:08]} 40. Qc4 {[%clk 0:00:13]} 1-0


[Site "https://www.chess.com"]

[Event "Titled Tuesday Blitz April 19 Early 2022"]
[White "Atakhan, Abtin"]
[Black "Praggnanandhaa R"]
[WhiteFideId "22502203"]
[BlackFideId "25059530"]
[WhiteElo "2094"]
[BlackElo "2599"]
[Result "0-1"]
[Round "03"]
[TimeControl "180+1"]
[Date "2022.04.19"]
[WhiteClock "0:00:29"]
[BlackClock "0:01:38"]

1. c4 {[%clk 0:03:00]}  c5 {[%clk 0:02:56]} 2. g3 {[%clk 0:03:00]}  Nf6 {[%clk 0:02:56]} 3. Bg2 {[%clk 0:03:00]}  Nc6 {[%clk 0:02:55]} 4. Nc3 {[%clk 0:03:01]}  d6 {[%clk 0:02:53]} 5. d3 {[%clk 0:02:58]}  g6 {[%clk 0:02:53]} 6. Nf3 {[%clk 0:02:54]}  h5 {[%clk 0:02:47]} 7. Bg5 {[%clk 0:02:47]}  Bh6 {[%clk 0:02:45]} 8. Bxh6 {[%clk 0:02:45]}  Rxh6 {[%clk 0:02:45]} 9. h4 {[%clk 0:02:46]}  Kf8 {[%clk 0:02:44]} 10. Qd2 {[%clk 0:02:44]}  Kg7 {[%clk 0:02:44]} 11. a3 {[%clk 0:02:45]}  Rh8 {[%clk 0:02:40]} 12. Rb1 {[%clk 0:02:42]}  a5 {[%clk 0:02:36]} 13. O-O {[%clk 0:02:40]}  e5 {[%clk 0:02:35]} 14. Ng5 {[%clk 0:02:36]}  Ng4 {[%clk 0:02:32]} 15. f3 {[%clk 0:02:17]}  Nh6 {[%clk 0:02:31]} 16. f4 {[%clk 0:02:17]}  Rf8 {[%clk 0:02:21]} 17. fxe5 {[%clk 0:02:09]}  Nxe5 {[%clk 0:02:21]} 18. b4 {[%clk 0:02:06]}  axb4 {[%clk 0:02:20]} 19. axb4 {[%clk 0:02:07]}  Nf5 {[%clk 0:02:20]} 20. Qf4 {[%clk 0:02:00]}  cxb4 {[%clk 0:02:11]} 21. Nd5 {[%clk 0:01:56]}  Ra2 {[%clk 0:02:03]} 22. e4 {[%clk 0:01:51]}  Nd4 {[%clk 0:02:02]} 23. Rf2 {[%clk 0:01:45]}  Ne2+ {[%clk 0:01:48]} 24. Rxe2 {[%clk 0:01:45]}  Rxe2 {[%clk 0:01:49]} 25. d4 {[%clk 0:01:36]}  Nxc4 {[%clk 0:01:49]} 26. Bf1 {[%clk 0:01:28]}  Rb2 {[%clk 0:01:48]} 27. Rc1 {[%clk 0:01:17]}  b5 {[%clk 0:01:48]} 28. Bxc4 {[%clk 0:01:16]}  bxc4 {[%clk 0:01:47]} 29. Rxc4 {[%clk 0:01:17]}  Be6 {[%clk 0:01:46]} 30. Qc1 {[%clk 0:00:48]}  Bxd5 {[%clk 0:01:42]} 31. exd5 {[%clk 0:00:49]}  Ra2 {[%clk 0:01:42]} 32. Rc7 {[%clk 0:00:47]}  Kg8 {[%clk 0:01:41]} 33. Rb7 {[%clk 0:00:38]}  Qa8 {[%clk 0:01:40]} 34. Rxb4 {[%clk 0:00:29]}  Qxd5 {[%clk 0:01:38]} 0-1


[Site "https://www.chess.com"]

[Event "Titled Tuesday Blitz April 19 Early 2022"]
[White "Bernat, David"]
[Black "Reprintsev, Alexander"]
[WhiteFideId "2099225"]
[BlackFideId "14100541"]
[WhiteElo "2287"]
[BlackElo "2108"]
[Result "0-1"]
[Round "03"]
[TimeControl "180+1"]
[Date "2022.04.19"]
[WhiteClock "0:00:02"]
[BlackClock "0:00:19"]

1. c4 {[%clk 0:03:00]}  e5 {[%clk 0:02:59]} 2. g4 {[%clk 0:03:00]}  d5 {[%clk 0:02:56]} 3. cxd5 {[%clk 0:02:57]}  Qxd5 {[%clk 0:02:55]} 4. f3 {[%clk 0:02:56]}  Bxg4 {[%clk 0:02:52]} 5. Nc3 {[%clk 0:02:55]}  Qd8 {[%clk 0:02:45]} 6. Qa4+ {[%clk 0:02:48]}  Bd7 {[%clk 0:02:44]} 7. Qe4 {[%clk 0:02:45]}  Nc6 {[%clk 0:02:38]} 8. h4 {[%clk 0:02:41]}  Nf6 {[%clk 0:02:37]} 9. Qb1 {[%clk 0:02:40]}  Bc5 {[%clk 0:02:29]} 10. a3 {[%clk 0:02:30]}  Qe7 {[%clk 0:02:29]} 11. b4 {[%clk 0:02:30]}  Bd4 {[%clk 0:02:25]} 12. Bb2 {[%clk 0:02:29]}  O-O-O {[%clk 0:02:25]} 13. e3 {[%clk 0:02:26]}  Bxc3 {[%clk 0:02:18]} 14. Bxc3 {[%clk 0:02:26]}  Nd5 {[%clk 0:02:18]} 15. Bb2 {[%clk 0:02:22]}  f5 {[%clk 0:02:17]} 16. b5 {[%clk 0:02:12]}  Na5 {[%clk 0:02:14]} 17. Qc2 {[%clk 0:01:59]}  c5 {[%clk 0:02:02]} 18. Rc1 {[%clk 0:01:49]}  b6 {[%clk 0:02:02]} 19. Ne2 {[%clk 0:01:28]}  Rhe8 {[%clk 0:01:58]} 20. Nc3 {[%clk 0:01:27]}  Nxc3 {[%clk 0:01:57]} 21. Bxc3 {[%clk 0:01:28]}  Nb7 {[%clk 0:01:57]} 22. a4 {[%clk 0:01:21]}  g6 {[%clk 0:01:44]} 23. a5 {[%clk 0:01:13]}  Nd6 {[%clk 0:01:36]} 24. axb6 {[%clk 0:01:12]}  axb6 {[%clk 0:01:37]} 25. Qa4 {[%clk 0:01:09]}  Kc7 {[%clk 0:01:30]} 26. Qa7+ {[%clk 0:00:59]}  Nb7 {[%clk 0:01:30]} 27. Ra1 {[%clk 0:00:49]}  Ra8 {[%clk 0:01:19]} 28. Qxa8 {[%clk 0:00:49]}  Rxa8 {[%clk 0:01:20]} 29. Rxa8 {[%clk 0:00:50]}  Nd6 {[%clk 0:01:12]} 30. Kf2 {[%clk 0:00:37]}  Bc8 {[%clk 0:01:03]} 31. Be2 {[%clk 0:00:26]}  Bb7 {[%clk 0:01:03]} 32. Ra4 {[%clk 0:00:20]}  h5 {[%clk 0:00:52]} 33. Raa1 {[%clk 0:00:15]}  c4 {[%clk 0:00:31]} 34. Rag1 {[%clk 0:00:09]}  f4 {[%clk 0:00:24]} 35. Rxg6 {[%clk 0:00:07]}  Nxb5 {[%clk 0:00:20]} 36. Rhg1 {[%clk 0:00:06]}  fxe3+ {[%clk 0:00:20]} 37. dxe3 {[%clk 0:00:05]}  Qxh4+ {[%clk 0:00:19]} 38. Kf1 {[%clk 0:00:03]}  Nxc3 {[%clk 0:00:19]} 39. Rg7+ {[%clk 0:00:02]}  Kb8 {[%clk 0:00:19]} 0-1


[Site "https://www.chess.com"]

[Event "Titled Tuesday Blitz April 19 Early 2022"]
[White "Buchenau, Frank"]
[Black "Thomas, Anysia"]
[WhiteFideId "4604350"]
[BlackFideId "670472"]
[WhiteElo "2193"]
[BlackElo "2002"]
[Result "1-0"]
[Round "03"]
[TimeControl "180+1"]
[Date "2022.04.19"]
[WhiteClock "0:00:21"]
[BlackClock "0:00:10"]

1. e4 {[%clk 0:03:00]}  c5 {[%clk 0:02:43]} 2. Nf3 {[%clk 0:03:00]}  g6 {[%clk 0:02:42]} 3. c3 {[%clk 0:02:59]}  d5 {[%clk 0:02:41]} 4. e5 {[%clk 0:02:59]}  Bg7 {[%clk 0:02:34]} 5. d4 {[%clk 0:02:58]}  Bg4 {[%clk 0:02:34]} 6. Bb5+ {[%clk 0:02:57]}  Nc6 {[%clk 0:02:33]} 7. h3 {[%clk 0:02:55]}  Bxf3 {[%clk 0:02:33]} 8. Qxf3 {[%clk 0:02:55]}  Qb6 {[%clk 0:02:30]} 9. Bxc6+ {[%clk 0:02:54]}  Qxc6 {[%clk 0:02:25]} 10. Be3 {[%clk 0:02:48]}  Nh6 {[%clk 0:02:22]} 11. g4 {[%clk 0:02:47]}  O-O {[%clk 0:02:16]} 12. dxc5 {[%clk 0:02:44]}  f6 {[%clk 0:02:10]} 13. exf6 {[%clk 0:02:37]}  Rxf6 {[%clk 0:02:09]} 14. Qe2 {[%clk 0:02:33]}  Nf7 {[%clk 0:02:08]} 15. Nd2 {[%clk 0:02:27]}  e5 {[%clk 0:02:02]} 16. O-O-O {[%clk 0:02:21]}  a5 {[%clk 0:01:49]} 17. Kb1 {[%clk 0:02:16]}  a4 {[%clk 0:01:49]} 18. Rhf1 {[%clk 0:02:10]}  Re6 {[%clk 0:01:48]} 19. Qd3 {[%clk 0:02:00]}  e4 {[%clk 0:01:18]} 20. Qe2 {[%clk 0:01:46]}  a3 {[%clk 0:01:18]} 21. Nb3 {[%clk 0:01:34]}  axb2 {[%clk 0:01:15]} 22. Nd4 {[%clk 0:01:22]}  Qa4 {[%clk 0:00:59]} 23. Qxb2 {[%clk 0:01:20]}  Rea6 {[%clk 0:00:56]} 24. Rd2 {[%clk 0:01:14]}  Qc4 {[%clk 0:00:50]} 25. Rfd1 {[%clk 0:01:03]}  Ne5 {[%clk 0:00:36]} 26. Qb3 {[%clk 0:00:58]}  Ra3 {[%clk 0:00:19]} 27. Qxc4 {[%clk 0:00:54]}  Nxc4 {[%clk 0:00:20]} 28. Rc2 {[%clk 0:00:52]}  R8a5 {[%clk 0:00:18]} 29. Nb3 {[%clk 0:00:49]}  Rb5 {[%clk 0:00:16]} 30. Bd4 {[%clk 0:00:46]}  Bf8 {[%clk 0:00:15]} 31. f3 {[%clk 0:00:34]}  exf3 {[%clk 0:00:14]} 32. Rf1 {[%clk 0:00:34]}  Na5 {[%clk 0:00:13]} 33. Kb2 {[%clk 0:00:32]}  Ra4 {[%clk 0:00:12]} 34. Rxf3 {[%clk 0:00:30]}  Nc4+ {[%clk 0:00:12]} 35. Kc1 {[%clk 0:00:29]}  Na3 {[%clk 0:00:11]} 36. Rcf2 {[%clk 0:00:27]}  Be7 {[%clk 0:00:10]} 37. Rf7 {[%clk 0:00:21]} 1-0


[Site "https://www.chess.com"]

[Event "Titled Tuesday Blitz April 19 Early 2022"]
[White "Cagara, Paulina"]
[Black "Chan, Kim Yew"]
[WhiteFideId "1124870"]
[BlackFideId "5717981"]
[WhiteElo "1780"]
[BlackElo "2206"]
[Result "0-1"]
[Round "03"]
[TimeControl "180+1"]
[Date "2022.04.19"]
[WhiteClock "0:00:30"]
[BlackClock "0:00:10"]

1. e4 {[%clk 0:03:00]}  c5 {[%clk 0:02:47]} 2. Nc3 {[%clk 0:03:00]}  e6 {[%clk 0:02:45]} 3. g3 {[%clk 0:02:59]}  d5 {[%clk 0:02:46]} 4. exd5 {[%clk 0:02:58]}  exd5 {[%clk 0:02:46]} 5. d4 {[%clk 0:02:58]}  Nf6 {[%clk 0:02:45]} 6. Bg2 {[%clk 0:02:57]}  cxd4 {[%clk 0:02:11]} 7. Qxd4 {[%clk 0:02:56]}  Nc6 {[%clk 0:02:11]} 8. Qa4 {[%clk 0:02:53]}  Bc5 {[%clk 0:02:06]} 9. Nge2 {[%clk 0:02:50]}  O-O {[%clk 0:02:05]} 10. O-O {[%clk 0:02:50]}  Be6 {[%clk 0:01:57]} 11. Bg5 {[%clk 0:02:49]}  h6 {[%clk 0:01:57]} 12. Bxf6 {[%clk 0:02:48]}  Qxf6 {[%clk 0:01:58]} 13. Nxd5 {[%clk 0:02:44]}  Bxd5 {[%clk 0:01:28]} 14. Bxd5 {[%clk 0:02:42]}  Qxb2 {[%clk 0:01:26]} 15. Bxc6 {[%clk 0:02:41]}  bxc6 {[%clk 0:01:27]} 16. Qxc6 {[%clk 0:02:40]}  Qxc2 {[%clk 0:01:22]} 17. Qf3 {[%clk 0:02:35]}  Bb6 {[%clk 0:01:13]} 18. Rfc1 {[%clk 0:02:32]}  Qd2 {[%clk 0:01:13]} 19. Nf4 {[%clk 0:02:27]}  Rfd8 {[%clk 0:01:11]} 20. Nh5 {[%clk 0:02:20]}  Qg5 {[%clk 0:01:10]} 21. h4 {[%clk 0:02:18]}  Qg6 {[%clk 0:01:08]} 22. Rd1 {[%clk 0:02:14]}  Rac8 {[%clk 0:01:07]} 23. Rxd8+ {[%clk 0:02:12]}  Rxd8 {[%clk 0:01:08]} 24. Rd1 {[%clk 0:02:09]}  Rc8 {[%clk 0:01:01]} 25. Nf4 {[%clk 0:02:07]}  Qf5 {[%clk 0:00:59]} 26. Qd5 {[%clk 0:02:02]}  Qg4 {[%clk 0:00:52]} 27. Qd3 {[%clk 0:01:47]}  Rd8 {[%clk 0:00:46]} 28. Nd5 {[%clk 0:01:38]}  Rxd5 {[%clk 0:00:28]} 29. Qxd5 {[%clk 0:01:38]}  Qxg3+ {[%clk 0:00:29]} 30. Kh1 {[%clk 0:01:36]}  Qxh4+ {[%clk 0:00:29]} 31. Kg2 {[%clk 0:01:34]}  Qxf2+ {[%clk 0:00:28]} 32. Kh3 {[%clk 0:01:34]}  Qe3+ {[%clk 0:00:27]} 33. Kg2 {[%clk 0:01:32]}  Qe2+ {[%clk 0:00:24]} 34. Kh3 {[%clk 0:01:32]}  g6 {[%clk 0:00:19]} 35. a4 {[%clk 0:01:29]}  h5 {[%clk 0:00:18]} 36. Qa8+ {[%clk 0:01:26]}  Kg7 {[%clk 0:00:18]} 37. Qc6 {[%clk 0:01:19]}  Qg4+ {[%clk 0:00:18]} 38. Kh2 {[%clk 0:01:16]}  Qe2+ {[%clk 0:00:18]} 39. Kh3 {[%clk 0:01:15]}  Qe3+ {[%clk 0:00:18]} 40. Kg2 {[%clk 0:01:11]}  h4 {[%clk 0:00:18]} 41. Qf3 {[%clk 0:01:02]}  Qg5+ {[%clk 0:00:16]} 42. Kh3 {[%clk 0:00:59]}  Bd8 {[%clk 0:00:15]} 43. Qc3+ {[%clk 0:00:57]}  Bf6 {[%clk 0:00:14]} 44. Qf3 {[%clk 0:00:55]}  Qa5 {[%clk 0:00:06]} 45. Rf1 {[%clk 0:00:54]}  Qe5 {[%clk 0:00:06]} 46. a5 {[%clk 0:00:50]}  Qe6+ {[%clk 0:00:05]} 47. Kh2 {[%clk 0:00:45]}  Bg5 {[%clk 0:00:04]} 48. a6 {[%clk 0:00:41]}  f5 {[%clk 0:00:04]} 49. Qc3+ {[%clk 0:00:40]}  Kh6 {[%clk 0:00:04]} 50. Qf3 {[%clk 0:00:38]}  Qe5+ {[%clk 0:00:03]} 51. Kh1 {[%clk 0:00:37]}  Qd6 {[%clk 0:00:03]} 52. Qe2 {[%clk 0:00:36]}  Qc6+ {[%clk 0:00:02]} 53. Kh2 {[%clk 0:00:36]}  Qb6 {[%clk 0:00:02]} 54. Rg1 {[%clk 0:00:32]}  Qd6+ {[%clk 0:00:02]} 55. Kh1 {[%clk 0:00:32]}  Qf4 {[%clk 0:00:03]} 56. Qg2 {[%clk 0:00:31]}  Qe4 {[%clk 0:00:03]} 57. Qxe4 {[%clk 0:00:30]}  fxe4 {[%clk 0:00:04]} 58. Re1 {[%clk 0:00:30]}  e3 {[%clk 0:00:04]} 59. Kg2 {[%clk 0:00:30]}  Kh5 {[%clk 0:00:04]} 60. Kf3 {[%clk 0:00:30]}  h3 {[%clk 0:00:04]} 61. Kg3 {[%clk 0:00:29]}  Bh4+ {[%clk 0:00:05]} 62. Kxh3 {[%clk 0:00:30]}  Bxe1 {[%clk 0:00:05]} 63. Kg2 {[%clk 0:00:30]}  Bd2 {[%clk 0:00:06]} 64. Kf3 {[%clk 0:00:30]}  Kg5 {[%clk 0:00:07]} 65. Ke2 {[%clk 0:00:30]}  Kf5 {[%clk 0:00:08]} 66. Kd3 {[%clk 0:00:30]}  Ke5 {[%clk 0:00:08]} 67. Ke2 {[%clk 0:00:30]}  Kd6 {[%clk 0:00:09]} 68. Kf3 {[%clk 0:00:30]}  Kc6 {[%clk 0:00:10]} 0-1


[Site "https://www.chess.com"]